[Event "Titled Tuesday Blitz December 20 Early 2022"]
[White "Aradhya, Garg"]
[Black "Etoilegeniale"]
[WhiteFideId "25006746"]
[WhiteElo "2284"]
[BlackElo "2593"]
[Result "1-0"]
[Round "09"]
[TimeControl "180+2"]
[Date "2022.12.20"]
[WhiteClock "0:00:11"]
[BlackClock "0:00:04"]

1. d4 {[%clk 0:02:57]}  d5 {[%clk 0:02:58]} 2. c4 {[%clk 0:02:57]}  c6 {[%clk 0:02:56]} 3. Nc3 {[%clk 0:02:55]}  Nf6 {[%clk 0:02:56]} 4. cxd5 {[%clk 0:02:56]}  cxd5 {[%clk 0:02:55]} 5. Bf4 {[%clk 0:02:56]}  Nc6 {[%clk 0:02:55]} 6. e3 {[%clk 0:02:56]}  a6 {[%clk 0:02:54]} 7. Be2 {[%clk 0:02:40]}  e6 {[%clk 0:02:33]} 8. Rc1 {[%clk 0:02:38]}  Bd6 {[%clk 0:02:29]} 9. Bxd6 {[%clk 0:02:35]}  Qxd6 {[%clk 0:02:28]} 10. f4 {[%clk 0:02:35]}  O-O {[%clk 0:02:26]} 11. Nf3 {[%clk 0:02:35]}  b5 {[%clk 0:02:25]} 12. O-O {[%clk 0:02:34]}  Bb7 {[%clk 0:02:25]} 13. Ne5 {[%clk 0:02:35]}  Ne7 {[%clk 0:02:21]} 14. Bd3 {[%clk 0:02:35]}  Ne4 {[%clk 0:02:16]} 15. a4 {[%clk 0:02:07]}  f6 {[%clk 0:01:58]} 16. Nf3 {[%clk 0:01:42]}  b4 {[%clk 0:01:54]} 17. Nb1 {[%clk 0:01:39]}  Rac8 {[%clk 0:01:43]} 18. Qe2 {[%clk 0:01:37]}  Rc6 {[%clk 0:01:08]} 19. Nbd2 {[%clk 0:01:31]}  Rfc8 {[%clk 0:01:06]} 20. Rb1 {[%clk 0:01:27]}  R6c7 {[%clk 0:00:55]} 21. Nb3 {[%clk 0:01:27]}  Qb6 {[%clk 0:00:44]} 22. Nfd2 {[%clk 0:01:23]}  a5 {[%clk 0:00:40]} 23. Bxe4 {[%clk 0:01:17]}  dxe4 {[%clk 0:00:40]} 24. Nc5 {[%clk 0:01:17]}  f5 {[%clk 0:00:36]} 25. Rfc1 {[%clk 0:01:11]}  Nd5 {[%clk 0:00:34]} 26. Nc4 {[%clk 0:01:09]}  Qa7 {[%clk 0:00:29]} 27. Nxe6 {[%clk 0:01:09]}  Ba6 {[%clk 0:00:22]} 28. Nxc7 {[%clk 0:01:08]}  Rxc7 {[%clk 0:00:22]} 29. g4 {[%clk 0:00:37]}  b3 {[%clk 0:00:20]} 30. gxf5 {[%clk 0:00:24]}  Qb8 {[%clk 0:00:20]} 31. Kh1 {[%clk 0:00:13]}  Qb4 {[%clk 0:00:19]} 32. Qh5 {[%clk 0:00:12]}  Nf6 {[%clk 0:00:16]} 33. Qd1 {[%clk 0:00:11]}  Rxc4 {[%clk 0:00:16]} 34. Rxc4 {[%clk 0:00:11]}  Bxc4 {[%clk 0:00:16]} 35. Rc1 {[%clk 0:00:11]}  h6 {[%clk 0:00:17]} 36. Qe1 {[%clk 0:00:10]}  Qxe1+ {[%clk 0:00:13]} 37. Rxe1 {[%clk 0:00:09]}  Nd5 {[%clk 0:00:14]} 38. Kg2 {[%clk 0:00:10]}  Kf7 {[%clk 0:00:13]} 39. Kf2 {[%clk 0:00:08]}  Bd3 {[%clk 0:00:13]} 40. Rc1 {[%clk 0:00:07]}  Bc2 {[%clk 0:00:13]} 41. Ke2 {[%clk 0:00:08]}  Kf6 {[%clk 0:00:13]} 42. Rg1 {[%clk 0:00:06]}  Nb4 {[%clk 0:00:12]} 43. Rg6+ {[%clk 0:00:05]}  Kxf5 {[%clk 0:00:12]} 44. Rxg7 {[%clk 0:00:05]}  Nd3 {[%clk 0:00:13]} 45. Ra7 {[%clk 0:00:05]}  Nxb2 {[%clk 0:00:13]} 46. Rxa5+ {[%clk 0:00:05]}  Kg4 {[%clk 0:00:13]} 47. Rc5 {[%clk 0:00:04]}  Nd3 {[%clk 0:00:11]} 48. Rb5 {[%clk 0:00:04]}  b2 {[%clk 0:00:11]} 49. a5 {[%clk 0:00:04]}  Nxf4+ {[%clk 0:00:08]} 50. Kd2 {[%clk 0:00:05]}  Bd3 {[%clk 0:00:08]} 51. Rxb2 {[%clk 0:00:05]}  Nd5 {[%clk 0:00:07]} 52. Rb3 {[%clk 0:00:05]}  Bc4 {[%clk 0:00:06]} 53. Rb2 {[%clk 0:00:05]}  Kf3 {[%clk 0:00:05]} 54. Rc2 {[%clk 0:00:05]}  Bd3 {[%clk 0:00:05]} 55. Rc5 {[%clk 0:00:06]}  Nb4 {[%clk 0:00:06]} 56. Rf5+ {[%clk 0:00:06]}  Kg2 {[%clk 0:00:05]} 57. Rf4 {[%clk 0:00:06]}  Kxh2 {[%clk 0:00:05]} 58. Rh4+ {[%clk 0:00:07]}  Kg3 {[%clk 0:00:05]} 59. Rxh6 {[%clk 0:00:08]}  Kf3 {[%clk 0:00:06]} 60. Rf6+ {[%clk 0:00:08]}  Kg4 {[%clk 0:00:06]} 61. Rf4+ {[%clk 0:00:08]}  Kg5 {[%clk 0:00:06]} 62. Rf8 {[%clk 0:00:09]}  Kg4 {[%clk 0:00:06]} 63. Rf4+ {[%clk 0:00:08]}  Kg3 {[%clk 0:00:06]} 64. Rf8 {[%clk 0:00:08]}  Kg4 {[%clk 0:00:06]} 65. Rb8 {[%clk 0:00:08]}  Na6 {[%clk 0:00:06]} 66. Rb6 {[%clk 0:00:09]}  Kf3 {[%clk 0:00:06]} 67. d5 {[%clk 0:00:09]}  Nc5 {[%clk 0:00:05]} 68. Rf6+ {[%clk 0:00:10]}  Kg4 {[%clk 0:00:05]} 69. d6 {[%clk 0:00:10]}  Kg5 {[%clk 0:00:05]} 70. Rf7 {[%clk 0:00:11]}  Kg6 {[%clk 0:00:05]} 71. d7 {[%clk 0:00:11]}  Ne6 {[%clk 0:00:05]} 72. Re7 {[%clk 0:00:11]}  Nd8 {[%clk 0:00:04]} 73. Re8 {[%clk 0:00:11]} 1-0


[Site "https://www.chess.com"]

[Event "Titled Tuesday Blitz December 20 Early 2022"]
[White "AsaHoffmann"]
[Black "AldokhinIvan"]
[WhiteElo "2376"]
[BlackElo "2572"]
[Result "1-0"]
[Round "09"]
[TimeControl "180+2"]
[Date "2022.12.20"]
[WhiteClock "0:01:29"]
[BlackClock "0:00:06"]

1. d4 {[%clk 0:02:56]}  Nf6 {[%clk 0:02:59]} 2. Bg5 {[%clk 0:02:55]}  Ne4 {[%clk 0:02:59]} 3. Bf4 {[%clk 0:02:54]}  c5 {[%clk 0:02:58]} 4. f3 {[%clk 0:02:54]}  Nf6 {[%clk 0:02:54]} 5. dxc5 {[%clk 0:02:54]}  Qa5+ {[%clk 0:02:54]} 6. Nc3 {[%clk 0:02:53]}  Qxc5 {[%clk 0:02:52]} 7. e4 {[%clk 0:02:53]}  d6 {[%clk 0:02:38]} 8. Qd2 {[%clk 0:02:53]}  g6 {[%clk 0:02:27]} 9. O-O-O {[%clk 0:02:47]}  Bg7 {[%clk 0:02:25]} 10. Nge2 {[%clk 0:02:46]}  O-O {[%clk 0:02:21]} 11. Bh6 {[%clk 0:02:45]}  Nc6 {[%clk 0:02:17]} 12. h4 {[%clk 0:02:45]}  Be6 {[%clk 0:01:53]} 13. h5 {[%clk 0:02:37]}  Rac8 {[%clk 0:01:26]} 14. Bxg7 {[%clk 0:02:32]}  Kxg7 {[%clk 0:01:25]} 15. Nf4 {[%clk 0:02:32]}  Nb4 {[%clk 0:01:02]} 16. a3 {[%clk 0:02:21]}  Na2+ {[%clk 0:00:59]} 17. Nxa2 {[%clk 0:02:18]}  Bxa2 {[%clk 0:01:00]} 18. hxg6 {[%clk 0:02:14]}  hxg6 {[%clk 0:00:50]} 19. Nd3 {[%clk 0:02:07]}  Qxc2+ {[%clk 0:00:26]} 20. Qxc2 {[%clk 0:02:06]}  Bb3 {[%clk 0:00:26]} 21. Rd2 {[%clk 0:02:01]}  Bxc2 {[%clk 0:00:24]} 22. Rxc2 {[%clk 0:02:00]}  Rxc2+ {[%clk 0:00:25]} 23. Kxc2 {[%clk 0:02:00]}  Rc8+ {[%clk 0:00:26]} 24. Kd2 {[%clk 0:02:00]}  d5 {[%clk 0:00:21]} 25. e5 {[%clk 0:01:59]}  Nd7 {[%clk 0:00:18]} 26. Be2 {[%clk 0:01:59]}  Nb6 {[%clk 0:00:13]} 27. b3 {[%clk 0:01:58]}  g5 {[%clk 0:00:13]} 28. Rc1 {[%clk 0:01:57]}  Rh8 {[%clk 0:00:12]} 29. Rc7 {[%clk 0:01:56]}  Rh2 {[%clk 0:00:11]} 30. g3 {[%clk 0:01:46]}  d4 {[%clk 0:00:11]} 31. Nb4 {[%clk 0:01:32]}  a5 {[%clk 0:00:10]} 32. Rxb7 {[%clk 0:01:29]}  axb4 {[%clk 0:00:05]} 33. Rxb6 {[%clk 0:01:29]}  bxa3 {[%clk 0:00:06]} 34. Ra6 {[%clk 0:01:29]} 1-0


[Site "https://www.chess.com"]

[Event "Titled Tuesday Blitz December 20 Early 2022"]
[White "Aygehovit1992"]
[Black "Boudreaux, Floyd"]
[BlackFideId "2016370"]
[WhiteElo "2682"]
[BlackElo "2088"]
[Result "1-0"]
[Round "09"]
[TimeControl "180+2"]
[Date "2022.12.20"]
[WhiteClock "0:00:43"]
[BlackClock "0:00:01"]

1. e4 {[%clk 0:02:56]}  e5 {[%clk 0:02:59]} 2. Nf3 {[%clk 0:02:52]}  Nc6 {[%clk 0:02:59]} 3. Bb5 {[%clk 0:02:53]}  a6 {[%clk 0:02:58]} 4. Ba4 {[%clk 0:02:53]}  Nf6 {[%clk 0:02:57]} 5. d3 {[%clk 0:02:54]}  d6 {[%clk 0:02:54]} 6. c3 {[%clk 0:02:52]}  g6 {[%clk 0:02:50]} 7. O-O {[%clk 0:02:49]}  Bg7 {[%clk 0:02:49]} 8. Nbd2 {[%clk 0:02:50]}  O-O {[%clk 0:02:49]} 9. Re1 {[%clk 0:02:50]}  b5 {[%clk 0:02:49]} 10. Bb3 {[%clk 0:02:49]}  Na5 {[%clk 0:02:47]} 11. Bc2 {[%clk 0:02:48]}  c5 {[%clk 0:02:48]} 12. Nf1 {[%clk 0:02:48]}  Nc6 {[%clk 0:02:46]} 13. Ng3 {[%clk 0:02:48]}  Re8 {[%clk 0:02:46]} 14. a4 {[%clk 0:02:41]}  Bb7 {[%clk 0:02:44]} 15. Bg5 {[%clk 0:02:36]}  h6 {[%clk 0:02:43]} 16. Bd2 {[%clk 0:02:35]}  d5 {[%clk 0:02:09]} 17. Qc1 {[%clk 0:02:29]}  Kh7 {[%clk 0:02:02]} 18. h4 {[%clk 0:02:30]}  d4 {[%clk 0:01:56]} 19. h5 {[%clk 0:02:27]}  c4 {[%clk 0:01:35]} 20. axb5 {[%clk 0:02:15]}  axb5 {[%clk 0:01:36]} 21. Rxa8 {[%clk 0:02:15]}  Bxa8 {[%clk 0:01:37]} 22. cxd4 {[%clk 0:02:04]}  Nxd4 {[%clk 0:01:01]} 23. dxc4 {[%clk 0:01:46]}  Nxf3+ {[%clk 0:00:53]} 24. gxf3 {[%clk 0:01:46]}  Nxh5 {[%clk 0:00:31]} 25. Nxh5 {[%clk 0:01:45]}  gxh5 {[%clk 0:00:32]} 26. cxb5 {[%clk 0:01:43]}  Rg8 {[%clk 0:00:25]} 27. Kf1 {[%clk 0:01:43]}  Bb7 {[%clk 0:00:18]} 28. Ke2 {[%clk 0:01:34]}  Bc8 {[%clk 0:00:16]} 29. Bb3 {[%clk 0:01:24]}  Rf8 {[%clk 0:00:15]} 30. Bd5 {[%clk 0:01:21]}  f5 {[%clk 0:00:15]} 31. Rg1 {[%clk 0:01:16]}  Qf6 {[%clk 0:00:10]} 32. Qc7 {[%clk 0:01:10]}  h4 {[%clk 0:00:06]} 33. Bb4 {[%clk 0:01:10]}  Re8 {[%clk 0:00:03]} 34. Bf7 {[%clk 0:00:46]}  fxe4 {[%clk 0:00:01]} 35. Bxe8 {[%clk 0:00:43]} 1-0


[Site "https://www.chess.com"]

[Event "Titled Tuesday Blitz December 20 Early 2022"]
[White "Battlecruiser_Operational"]
[Black "Harsha_Bharathakoti"]
[WhiteElo "2428"]
[BlackElo "2867"]
[Result "0-1"]
[Round "09"]
[TimeControl "180+2"]
[Date "2022.12.20"]
[WhiteClock "0:00:02"]
[BlackClock "0:00:18"]

1. d4 {[%clk 0:03:00]}  f5 {[%clk 0:03:00]} 2. c4 {[%clk 0:02:59]}  Nf6 {[%clk 0:03:00]} 3. g3 {[%clk 0:02:59]}  g6 {[%clk 0:03:01]} 4. Bg2 {[%clk 0:02:58]}  Bg7 {[%clk 0:03:01]} 5. Nh3 {[%clk 0:02:58]}  O-O {[%clk 0:03:02]} 6. Nc3 {[%clk 0:02:55]}  e6 {[%clk 0:03:01]} 7. O-O {[%clk 0:02:54]}  d6 {[%clk 0:03:01]} 8. Nf4 {[%clk 0:02:49]}  c6 {[%clk 0:02:49]} 9. h4 {[%clk 0:02:43]}  e5 {[%clk 0:02:48]} 10. dxe5 {[%clk 0:02:42]}  dxe5 {[%clk 0:02:49]} 11. Qxd8 {[%clk 0:02:38]}  Rxd8 {[%clk 0:02:50]} 12. Nd3 {[%clk 0:02:38]}  e4 {[%clk 0:02:49]} 13. Nf4 {[%clk 0:02:38]}  Na6 {[%clk 0:02:46]} 14. Rd1 {[%clk 0:02:07]}  Bd7 {[%clk 0:02:20]} 15. Be3 {[%clk 0:01:59]}  Ng4 {[%clk 0:02:20]} 16. Bd4 {[%clk 0:01:56]}  Ne5 {[%clk 0:02:20]} 17. c5 {[%clk 0:01:42]}  Kf7 {[%clk 0:02:05]} 18. a3 {[%clk 0:01:36]}  Nc7 {[%clk 0:02:02]} 19. Rac1 {[%clk 0:01:14]}  Ne6 {[%clk 0:01:49]} 20. Nxe6 {[%clk 0:01:13]}  Bxe6 {[%clk 0:01:50]} 21. b4 {[%clk 0:00:47]}  Bb3 {[%clk 0:01:41]} 22. Rd2 {[%clk 0:00:42]}  Nc4 {[%clk 0:01:37]} 23. Bxg7 {[%clk 0:00:41]}  Nxd2 {[%clk 0:01:35]} 24. Bh6 {[%clk 0:00:36]}  Be6 {[%clk 0:01:26]} 25. Bf4 {[%clk 0:00:24]}  Rd7 {[%clk 0:01:22]} 26. Rc2 {[%clk 0:00:14]}  Nc4 {[%clk 0:01:19]} 27. a4 {[%clk 0:00:13]}  Rad8 {[%clk 0:01:08]} 28. Bg5 {[%clk 0:00:13]}  Re8 {[%clk 0:01:05]} 29. Bf1 {[%clk 0:00:13]}  Kg7 {[%clk 0:00:56]} 30. Bf4 {[%clk 0:00:07]}  h6 {[%clk 0:00:57]} 31. Kg2 {[%clk 0:00:06]}  Rh8 {[%clk 0:00:55]} 32. f3 {[%clk 0:00:05]}  exf3+ {[%clk 0:00:52]} 33. exf3 {[%clk 0:00:06]}  Rhd8 {[%clk 0:00:37]} 34. Bxc4 {[%clk 0:00:05]}  Bxc4 {[%clk 0:00:37]} 35. Be5+ {[%clk 0:00:05]}  Kf7 {[%clk 0:00:37]} 36. Bd6 {[%clk 0:00:06]}  Re8 {[%clk 0:00:37]} 37. Rd2 {[%clk 0:00:05]}  Re3 {[%clk 0:00:35]} 38. Nd1 {[%clk 0:00:04]}  Re2+ {[%clk 0:00:33]} 39. Rxe2 {[%clk 0:00:04]}  Bxe2 {[%clk 0:00:34]} 40. Ne3 {[%clk 0:00:04]}  b6 {[%clk 0:00:27]} 41. h5 {[%clk 0:00:03]}  Bd3 {[%clk 0:00:22]} 42. hxg6+ {[%clk 0:00:03]}  Kxg6 {[%clk 0:00:22]} 43. Kf2 {[%clk 0:00:04]}  bxc5 {[%clk 0:00:19]} 44. Bxc5 {[%clk 0:00:05]}  a6 {[%clk 0:00:19]} 45. Ng2 {[%clk 0:00:05]}  Bc2 {[%clk 0:00:18]} 46. Nf4+ {[%clk 0:00:05]}  Kf7 {[%clk 0:00:19]} 47. Ke3 {[%clk 0:00:05]}  Bxa4 {[%clk 0:00:19]} 48. Nd3 {[%clk 0:00:05]}  Ke6 {[%clk 0:00:19]} 49. Nf4+ {[%clk 0:00:04]}  Kf6 {[%clk 0:00:19]} 50. Bd4+ {[%clk 0:00:04]}  Kf7 {[%clk 0:00:19]} 51. Bc5 {[%clk 0:00:04]}  Bb5 {[%clk 0:00:19]} 52. Nh5 {[%clk 0:00:03]}  Bc4 {[%clk 0:00:19]} 53. Kf4 {[%clk 0:00:03]}  Rd3 {[%clk 0:00:18]} 54. Kxf5 {[%clk 0:00:02]}  Rxf3+ {[%clk 0:00:19]} 55. Ke5 {[%clk 0:00:02]}  Bd5 {[%clk 0:00:18]} 0-1


[Site "https://www.chess.com"]

[Event "Titled Tuesday Blitz December 20 Early 2022"]
[White "Canche Cab, Marco Alexei"]
[Black "Chesstrainer1"]
[WhiteFideId "5116139"]
[WhiteElo "2004"]
[BlackElo "2467"]
[Result "1-0"]
[Round "09"]
[TimeControl "180+2"]
[Date "2022.12.20"]
[WhiteClock "0:00:10"]
[BlackClock "0:00:02"]

1. c4 {[%clk 0:03:00]}  Nf6 {[%clk 0:02:54]} 2. Nc3 {[%clk 0:02:58]}  g6 {[%clk 0:02:47]} 3. Nf3 {[%clk 0:02:48]}  Bg7 {[%clk 0:02:45]} 4. e4 {[%clk 0:02:47]}  d6 {[%clk 0:02:45]} 5. d4 {[%clk 0:02:46]}  O-O {[%clk 0:02:45]} 6. Be2 {[%clk 0:02:39]}  e5 {[%clk 0:02:43]} 7. dxe5 {[%clk 0:02:40]}  dxe5 {[%clk 0:02:43]} 8. Qxd8 {[%clk 0:02:40]}  Rxd8 {[%clk 0:02:42]} 9. Bg5 {[%clk 0:02:41]}  Re8 {[%clk 0:02:42]} 10. Nd5 {[%clk 0:02:38]}  Nxd5 {[%clk 0:02:42]} 11. cxd5 {[%clk 0:02:39]}  c6 {[%clk 0:02:41]} 12. Bc4 {[%clk 0:02:39]}  cxd5 {[%clk 0:02:37]} 13. Bxd5 {[%clk 0:02:40]}  Nd7 {[%clk 0:02:38]} 14. Nd2 {[%clk 0:02:32]}  Nb6 {[%clk 0:02:31]} 15. Bb3 {[%clk 0:02:31]}  Be6 {[%clk 0:02:22]} 16. Ke2 {[%clk 0:02:22]}  f6 {[%clk 0:01:53]} 17. Be3 {[%clk 0:02:17]}  Bf8 {[%clk 0:01:51]} 18. Rhc1 {[%clk 0:02:07]}  Kf7 {[%clk 0:01:35]} 19. Rc7+ {[%clk 0:01:57]}  Re7 {[%clk 0:01:35]} 20. Rac1 {[%clk 0:01:50]}  Rd8 {[%clk 0:01:19]} 21. Rxe7+ {[%clk 0:01:34]}  Bxe7 {[%clk 0:00:43]} 22. Rc7 {[%clk 0:01:32]}  Rb8 {[%clk 0:00:12]} 23. Bc5 {[%clk 0:01:14]}  Nc8 {[%clk 0:00:12]} 24. Nc4 {[%clk 0:01:14]}  Ke8 {[%clk 0:00:07]} 25. Bxe7 {[%clk 0:00:53]}  Bxc4+ {[%clk 0:00:07]} 26. Bxc4 {[%clk 0:00:52]}  Nxe7 {[%clk 0:00:08]} 27. Be6 {[%clk 0:00:45]}  a6 {[%clk 0:00:09]} 28. Ke3 {[%clk 0:00:40]}  a5 {[%clk 0:00:08]} 29. h4 {[%clk 0:00:38]}  b6 {[%clk 0:00:07]} 30. g4 {[%clk 0:00:33]}  Kd8 {[%clk 0:00:07]} 31. Rd7+ {[%clk 0:00:32]}  Ke8 {[%clk 0:00:08]} 32. g5 {[%clk 0:00:24]}  f5 {[%clk 0:00:08]} 33. exf5 {[%clk 0:00:20]}  gxf5 {[%clk 0:00:08]} 34. h5 {[%clk 0:00:17]}  Rd8 {[%clk 0:00:07]} 35. Rxd8+ {[%clk 0:00:11]}  Kxd8 {[%clk 0:00:07]} 36. g6 {[%clk 0:00:12]}  hxg6 {[%clk 0:00:06]} 37. h6 {[%clk 0:00:12]}  g5 {[%clk 0:00:04]} 38. h7 {[%clk 0:00:12]}  Ng6 {[%clk 0:00:04]} 39. Bxf5 {[%clk 0:00:12]}  Nh8 {[%clk 0:00:04]} 40. Ke4 {[%clk 0:00:13]}  Nf7 {[%clk 0:00:04]} 41. Bg6 {[%clk 0:00:12]}  Nh8 {[%clk 0:00:04]} 42. Bh5 {[%clk 0:00:10]}  Ke7 {[%clk 0:00:04]} 43. Kxe5 {[%clk 0:00:11]}  b5 {[%clk 0:00:04]} 44. Kf5 {[%clk 0:00:11]}  b4 {[%clk 0:00:01]} 45. Kxg5 {[%clk 0:00:11]}  a4 {[%clk 0:00:01]} 46. f4 {[%clk 0:00:12]}  a3 {[%clk 0:00:02]} 47. bxa3 {[%clk 0:00:11]}  bxa3 {[%clk 0:00:03]} 48. f5 {[%clk 0:00:11]}  Kf8 {[%clk 0:00:03]} 49. Kh6 {[%clk 0:00:10]}  Ke7 {[%clk 0:00:02]} 50. Kg7 {[%clk 0:00:10]} 1-0


[Site "https://www.chess.com"]

[Event "Titled Tuesday Blitz December 20 Early 2022"]
[White "Carvalho, Heracles Elieser"]
[Black "Lion-Al-Messi"]
[WhiteFideId "22751114"]
[WhiteElo "1895"]
[BlackElo "2520"]
[Result "0-1"]
[Round "09"]
[TimeControl "180+2"]
[Date "2022.12.20"]
[WhiteClock "0:00:05"]
[BlackClock "0:01:21"]

1. e4 {[%clk 0:02:59]}  c5 {[%clk 0:02:57]} 2. Nc3 {[%clk 0:02:59]}  Nc6 {[%clk 0:02:57]} 3. g3 {[%clk 0:03:00]}  e5 {[%clk 0:02:56]} 4. Bg2 {[%clk 0:03:00]}  Nf6 {[%clk 0:02:56]} 5. d3 {[%clk 0:03:01]}  d6 {[%clk 0:02:56]} 6. f4 {[%clk 0:02:56]}  Be7 {[%clk 0:02:56]} 7. Nf3 {[%clk 0:02:56]}  Bg4 {[%clk 0:02:54]} 8. h3 {[%clk 0:02:54]}  Bxf3 {[%clk 0:02:54]} 9. Qxf3 {[%clk 0:02:55]}  Qd7 {[%clk 0:02:53]} 10. O-O {[%clk 0:02:54]}  Nd4 {[%clk 0:02:53]} 11. Qf2 {[%clk 0:02:54]}  h5 {[%clk 0:02:53]} 12. Nd1 {[%clk 0:02:44]}  g6 {[%clk 0:02:50]} 13. c3 {[%clk 0:02:41]}  Ne6 {[%clk 0:02:49]} 14. f5 {[%clk 0:02:37]}  gxf5 {[%clk 0:02:47]} 15. exf5 {[%clk 0:02:37]}  Nd8 {[%clk 0:02:47]} 16. Ne3 {[%clk 0:02:28]}  Nc6 {[%clk 0:02:45]} 17. Nd5 {[%clk 0:02:26]}  O-O-O {[%clk 0:02:45]} 18. Nxe7+ {[%clk 0:02:22]}  Qxe7 {[%clk 0:02:39]} 19. Bg5 {[%clk 0:02:21]}  Rhg8 {[%clk 0:02:35]} 20. h4 {[%clk 0:02:01]}  d5 {[%clk 0:02:35]} 21. Rae1 {[%clk 0:01:50]}  Qd6 {[%clk 0:02:25]} 22. b4 {[%clk 0:01:42]}  Ng4 {[%clk 0:02:17]} 23. Qxc5 {[%clk 0:01:40]}  Qxc5+ {[%clk 0:02:17]} 24. bxc5 {[%clk 0:01:41]}  f6 {[%clk 0:02:18]} 25. Bd2 {[%clk 0:01:40]}  d4 {[%clk 0:02:16]} 26. Bxc6 {[%clk 0:01:25]}  bxc6 {[%clk 0:02:16]} 27. c4 {[%clk 0:01:25]}  Kd7 {[%clk 0:02:08]} 28. Rb1 {[%clk 0:01:24]}  Rb8 {[%clk 0:02:08]} 29. a4 {[%clk 0:01:17]}  Kc7 {[%clk 0:01:46]} 30. Kg2 {[%clk 0:01:14]}  Rxb1 {[%clk 0:01:45]} 31. Rxb1 {[%clk 0:01:14]}  Rb8 {[%clk 0:01:45]} 32. Ba5+ {[%clk 0:00:31]}  Kc8 {[%clk 0:01:44]} 33. Rxb8+ {[%clk 0:00:31]}  Kxb8 {[%clk 0:01:45]} 34. Bd8 {[%clk 0:00:32]}  Kc8 {[%clk 0:01:44]} 35. Be7 {[%clk 0:00:32]}  Kd7 {[%clk 0:01:44]} 36. Bd6 {[%clk 0:00:31]}  Ne3+ {[%clk 0:01:32]} 37. Kf3 {[%clk 0:00:28]}  Nxf5 {[%clk 0:01:33]} 38. Bb8 {[%clk 0:00:28]}  a6 {[%clk 0:01:32]} 39. g4 {[%clk 0:00:20]}  hxg4+ {[%clk 0:01:33]} 40. Kxg4 {[%clk 0:00:20]}  Ne3+ {[%clk 0:01:34]} 41. Kf3 {[%clk 0:00:19]}  Ke6 {[%clk 0:01:33]} 42. Bd6 {[%clk 0:00:14]}  f5 {[%clk 0:01:32]} 43. Bf8 {[%clk 0:00:14]}  Kf6 {[%clk 0:01:31]} 44. Bh6 {[%clk 0:00:12]}  Ng4 {[%clk 0:01:29]} 45. Bg5+ {[%clk 0:00:13]}  Kg6 {[%clk 0:01:29]} 46. Bd8 {[%clk 0:00:13]}  Nf6 {[%clk 0:01:26]} 47. Bc7 {[%clk 0:00:11]}  e4+ {[%clk 0:01:25]} 48. dxe4 {[%clk 0:00:11]}  fxe4+ {[%clk 0:01:26]} 49. Kf4 {[%clk 0:00:11]}  d3 {[%clk 0:01:27]} 50. Ke3 {[%clk 0:00:11]}  Ng4+ {[%clk 0:01:27]} 51. Kd2 {[%clk 0:00:11]}  Kh5 {[%clk 0:01:26]} 52. Bd8 {[%clk 0:00:11]}  Ne5 {[%clk 0:01:25]} 53. Kc3 {[%clk 0:00:10]}  Nf3 {[%clk 0:01:26]} 54. Bf6 {[%clk 0:00:06]}  Nxh4 {[%clk 0:01:22]} 55. Bd4 {[%clk 0:00:07]}  Nf3 {[%clk 0:01:22]} 56. Be3 {[%clk 0:00:07]}  Kg4 {[%clk 0:01:22]} 57. Bh6 {[%clk 0:00:06]}  Kh3 {[%clk 0:01:21]} 58. Be3 {[%clk 0:00:07]}  Kg2 {[%clk 0:01:22]} 59. a5 {[%clk 0:00:07]}  Kf1 {[%clk 0:01:22]} 60. Bf4 {[%clk 0:00:05]}  Ke2 {[%clk 0:01:21]} 0-1


[Site "https://www.chess.com"]

[Event "Titled Tuesday Blitz December 20 Early 2022"]
[White "Chessmissile07"]
[Black "Patterson, Fheopatrick"]
[BlackFideId "30939364"]
[WhiteElo "2730"]
[BlackElo "1497"]
[Result "0-1"]
[Round "09"]
[TimeControl "180+2"]
[Date "2022.12.20"]
[WhiteClock "0:00:03"]
[BlackClock "0:01:00"]

1. e4 {[%clk 0:03:00]}  c5 {[%clk 0:02:59]} 2. Nc3 {[%clk 0:03:00]}  e6 {[%clk 0:02:59]} 3. Nge2 {[%clk 0:02:57]}  Nc6 {[%clk 0:02:59]} 4. g3 {[%clk 0:02:55]}  g6 {[%clk 0:02:59]} 5. Bg2 {[%clk 0:02:55]}  Bg7 {[%clk 0:02:59]} 6. O-O {[%clk 0:02:55]}  Nge7 {[%clk 0:02:59]} 7. d3 {[%clk 0:02:55]}  O-O {[%clk 0:02:58]} 8. Be3 {[%clk 0:02:53]}  d6 {[%clk 0:02:58]} 9. d4 {[%clk 0:02:52]}  cxd4 {[%clk 0:02:57]} 10. Nxd4 {[%clk 0:02:53]}  a6 {[%clk 0:02:54]} 11. Qd2 {[%clk 0:02:45]}  Ne5 {[%clk 0:02:48]} 12. Qe2 {[%clk 0:02:44]}  Qc7 {[%clk 0:02:47]} 13. Rad1 {[%clk 0:02:42]}  Bd7 {[%clk 0:02:39]} 14. Bf4 {[%clk 0:02:17]}  Rfc8 {[%clk 0:02:36]} 15. Nf3 {[%clk 0:02:10]}  N7c6 {[%clk 0:02:26]} 16. Rd2 {[%clk 0:01:30]}  b5 {[%clk 0:02:16]} 17. Nxe5 {[%clk 0:01:02]}  Nxe5 {[%clk 0:02:14]} 18. Bxe5 {[%clk 0:01:02]}  Bxe5 {[%clk 0:02:14]} 19. Rfd1 {[%clk 0:01:02]}  b4 {[%clk 0:01:51]} 20. Nb1 {[%clk 0:01:02]}  Bb5 {[%clk 0:01:47]} 21. Qe3 {[%clk 0:01:02]}  Bxb2 {[%clk 0:01:46]} 22. Rxd6 {[%clk 0:00:53]}  Qxc2 {[%clk 0:01:37]} 23. R6d2 {[%clk 0:00:44]}  Qa4 {[%clk 0:01:37]} 24. e5 {[%clk 0:00:21]}  Bc1 {[%clk 0:01:30]} 25. Bxa8 {[%clk 0:00:16]}  Qxd1+ {[%clk 0:01:29]} 26. Rxd1 {[%clk 0:00:14]}  Bxe3 {[%clk 0:01:30]} 27. Bb7 {[%clk 0:00:13]}  Rc1 {[%clk 0:01:27]} 28. Rxc1 {[%clk 0:00:12]}  Bxc1 {[%clk 0:01:28]} 29. Be4 {[%clk 0:00:11]}  Bc4 {[%clk 0:01:27]} 30. f4 {[%clk 0:00:04]}  Be3+ {[%clk 0:01:24]} 31. Kg2 {[%clk 0:00:04]}  Bxa2 {[%clk 0:01:24]} 32. Kf3 {[%clk 0:00:04]}  Bc1 {[%clk 0:01:24]} 33. Ke2 {[%clk 0:00:04]}  Bc4+ {[%clk 0:01:22]} 34. Kd1 {[%clk 0:00:05]}  Be3 {[%clk 0:01:21]} 35. Kc2 {[%clk 0:00:03]}  a5 {[%clk 0:01:20]} 36. Bc6 {[%clk 0:00:03]}  Bg1 {[%clk 0:01:19]} 37. Nd2 {[%clk 0:00:03]}  Be2 {[%clk 0:01:05]} 38. h4 {[%clk 0:00:03]}  Bf2 {[%clk 0:01:01]} 39. Ne4 {[%clk 0:00:03]}  Be1 {[%clk 0:01:00]} 0-1


[Site "https://www.chess.com"]